fUST/lending_fUST_20250630
["ID","MTS","AMOUNT","RATE_DAILY","PERIOD"]
[368603813,1751227854472,-151.0,0.00021079,2]
[368603814,1751227854482,-323.989201,0.00021079,2]
[368603815,1751227854491,-471.76,0.00021079,2]
[368603816,1751227854501,-4024.99,0.00021079,2]
[368603817,1751227854511,-151.0,0.00021079,2]
[368603818,1751227854521,-460.0,0.00021079,2]
[368603819,1751227854531,-484.82,0.00021079,2]
[368603820,1751227854545,-942.9,0.00021079,2]
[368603821,1751227854555,-1268.33,0.00021079,2]
[368603822,1751227854564,-688.52,0.00021079,2]
[368603823,1751227854574,-1363.28,0.00021079,2]
[368603824,1751227854584,-151.0,0.00021079,2]
[368603825,1751227854594,-809.64,0.00021079,2]
[368603826,1751227854603,-640.55,0.00021079,2]
[368603827,1751227854614,-1187.21,0.00021079,2]
[368603828,1751227854624,-980.78,0.00021079,2]
[368603829,1751227854634,-460.0,0.00021079,2]
[368603830,1751227854643,-460.0,0.00021079,2]
[368603831,1751227854652,-4762.4,0.00021079,2]
[368603832,1751227854662,-460.0,0.00021079,2]
[368603833,1751227854672,-460.0,0.00021079,2]
[368603834,1751227854681,-460.0,0.00021079,2]
[368603835,1751227854691,-465.246323,0.0002108,2]
[368603836,1751227854700,-465.246323,0.0002108,2]
[368603837,1751227854710,-151.0,0.0002108,2]
[368603838,1751227854720,-1348.009543,0.0002108,2]
[368603839,1751227854729,-1348.009543,0.0002108,2]
[368603840,1751227854738,-151.0,0.0002108,2]
[368603841,1751227854748,-501.442487,0.0002108,2]
[368603842,1751227854757,-501.442487,0.0002108,2]
[368603843,1751227854767,-243.71,0.0002108,2]
[368603844,1751227854777,-460.0,0.0002108,2]
[368603845,1751227854787,-518.65,0.0002108,2]
[368603846,1751227854797,-614.5,0.0002108,2]
[368603847,1751227854807,-199.910457,0.0002108,2]
[368603848,1751227854817,-199.910457,0.0002108,2]
[368603849,1751227854826,-1043.13,0.0002108,2]
[368603850,1751227854836,-581.11,0.0002108,2]
[368603851,1751227854846,-151.0,0.0002108,2]
[368603852,1751227854856,-535.69,0.0002108,2]
[368603853,1751227854865,-727.91,0.0002108,2]
[368603854,1751227854875,-1267.43,0.0002108,2]
[368603855,1751227854885,-460.0,0.0002108,2]
[368603856,1751227854895,-151.0,0.00021081,2]
[368603857,1751227854905,-151.0,0.00021081,2]
[368603858,1751227854915,-651.75,0.00021081,2]
[368603859,1751227854924,-151.0,0.00021082,2]
[368603860,1751227854934,-336.77804,0.00021082,2]
[368603861,1751227854944,-336.77804,0.00021082,2]
[368603862,1751227854954,-151.0,0.00021084,2]
[368603863,1751227855082,-151.0,0.00021084,2]
[368603864,1751227855092,-379.361453,0.00021084,2]
[368603865,1751227855102,-379.361453,0.00021084,2]
[368603866,1751227855111,-154.004525,0.00021084,2]
[368603867,1751227855120,-151.0,0.00021086,2]
[368603868,1751227855129,-151.0,0.00021086,2]
[368603869,1751227855138,-151.0,0.00021086,2]
[368603870,1751227855147,-151.882799,0.00021086,2]
[368603871,1751227855157,-151.0,0.00021086,2]
[368603872,1751227855166,-491.948841,0.00021086,2]
[368603873,1751227855175,-491.948841,0.00021086,2]
[368603874,1751227855184,-1041.0,0.00021096,2]
[368603875,1751227855194,-151.0,0.00021098,2]
[368603876,1751227855203,-151.0,0.00021099,2]
[368603877,1751227855213,-151.0,0.00021099,2]
[368603878,1751227855222,-151.0,0.00021099,2]
[368603879,1751227855232,-151.0,0.00021099,2]
[368603880,1751227855243,-1284.6937,0.000211,2]
[368603881,1751227855252,-154.4173165,0.00021121,2]
[368603882,1751227855261,-1000.0,0.00021121,2]
[368603883,1751227855271,-1000.0,0.00021121,2]
[368603884,1751227855281,-1000.0,0.00021121,2]
[368603885,1751227855290,-1000.0,0.00021121,2]
[368603886,1751227855299,-1000.0,0.00021121,2]
[368603887,1751227855308,-733.58320994,0.00021121,2]
[368603888,1751227855317,-501.89998688,0.00021121,2]
[368603889,1751227855327,-1200.0,0.00021121,2]
[368603890,1751227855336,-1000.0,0.00021121,2]
[368603891,1751227855345,-151.0,0.00021132,2]
[368603892,1751227855355,-151.0,0.0002114,2]
[368603893,1751227855365,-4000.0,0.00021166,4]
[368603894,1751227855375,-502.48468,0.00021176,2]
[368603895,1751227855385,-502.48468,0.00021176,2]
[368603896,1751227855394,-151.0,0.00021176,2]
[368603897,1751227855404,-186.384044,0.00021176,2]
[368603898,1751227855413,-186.384044,0.00021176,2]
[368603899,1751227855425,-151.0,0.00021176,2]
[368603900,1751227855437,-323.989201,0.00021176,2]
[368603901,1751227855447,-151.0,0.00021176,2]
[368603902,1751227855456,-323.989201,0.00021176,2]
[368603903,1751227855466,-151.0,0.00021176,2]
[368603904,1751227855475,-151.0,0.00021176,2]
[368603905,1751227855486,-2000.0,0.00021176,2]
[368603906,1751227855496,-153.0,0.00021178,2]
[368603907,1751227855506,-153.0,0.00021178,2]
[368603908,1751227855516,-153.0,0.00021178,2]
[368603909,1751227855526,-355.0769662,0.00021178,2]
[368603910,1751227855537,-153.0,0.00021178,2]
[368603911,1751227855546,-1149.7195556,0.00021178,2]
[368603912,1751227855556,-318.3752344,0.00021178,2]
[368603913,1751227855565,-159.2394861,0.00021178,2]
[368603914,1751227855575,-153.0,0.00021178,2]
[368603915,1751227855585,-153.0,0.00021178,2]
[368603916,1751227855594,-6861.34076959,0.00021202,2]
[368603917,1751227855603,-2200.0,0.00021289,2]
[368603918,1751227855613,-151.0,0.000213,3]
[368603919,1751227855622,-151.0,0.000213,4]
[368603920,1751227855632,-525.07,0.00021351,2]
[368603921,1751227855643,-579.06,0.00021351,2]
[368603922,1751227855652,-2172.33,0.00021351,2]
[368603923,1751227855662,-460.0,0.00021352,2]
[368603924,1751227855671,-3161.16,0.00021352,2]
[368603925,1751227855680,-2985.09,0.00021352,2]
[368603926,1751227855690,-573.76,0.00021352,2]
[368603927,1751227855700,-649.15,0.00021352,2]
[368603928,1751227855709,-460.0,0.00021352,2]
[368603929,1751227855718,-4173.13,0.00021352,2]
[368603930,1751227855727,-3311.69,0.00021352,2]
[368603931,1751227855737,-3593.5,0.00021352,2]
[368603932,1751227855746,-494.09,0.00021352,2]
[368603933,1751227855755,-1876.75,0.00021352,2]
[368603934,1751227855764,-505.42,0.00021352,2]
[368603935,1751227855775,-545.51,0.00021352,2]
[368603936,1751227855784,-460.0,0.00021352,2]
[368603937,1751227855794,-262.65229,0.00021353,2]
[368603938,1751227855804,-1348.009543,0.00021353,2]
[368603939,1751227855813,-1348.009543,0.00021353,2]
[368603940,1751227855822,-151.0,0.00021353,2]
[368603941,1751227855832,-599.43,0.00021353,2]
[368603942,1751227855841,-1315.02,0.00021353,2]
[368603943,1751227855851,-814.59,0.00021353,2]
[368603944,1751227855860,-1050.34,0.00021353,2]
[368603945,1751227855870,-460.0,0.00021353,2]
[368603946,1751227855878,-460.0,0.00021353,2]
[368603947,1751227855887,-460.0,0.00021353,2]
[368603948,1751227855897,-622.54,0.00021353,2]
[368603949,1751227855907,-615.91,0.00021353,2]
[368603950,1751227855917,-622.23,0.00021353,2]
[368603951,1751227855927,-580.6,0.00021353,2]
[368603952,1751227855936,-1045.28,0.00021353,2]
[368603953,1751227855946,-966.73,0.00021353,2]
[368603954,1751227855956,-1694.13,0.00021353,2]
[368603955,1751227855966,-460.0,0.00021353,2]
[368603956,1751227855975,-471.76,0.00021353,2]
[368603957,1751227855987,-4024.99,0.00021353,2]
[368603958,1751227855996,-460.0,0.00021353,2]
[368603959,1751227856005,-484.82,0.00021353,2]
[368603960,1751227856015,-942.9,0.00021353,2]
[368603961,1751227856024,-1268.33,0.00021353,2]
[368603962,1751227856034,-688.52,0.00021353,2]
[368603963,1751227856043,-1363.28,0.00021353,2]
[368603964,1751227856052,-809.64,0.00021353,2]
[368603965,1751227856062,-640.55,0.00021353,2]
[368603966,1751227856072,-980.78,0.00021353,2]
[368603967,1751227856082,-1187.21,0.00021353,2]
[368603968,1751227856091,-460.0,0.00021353,2]
[368603969,1751227856101,-460.0,0.00021353,2]
[368603970,1751227856110,-4762.4,0.00021353,2]
[368603971,1751227856120,-460.0,0.00021353,2]
[368603972,1751227856129,-362.45,0.00021353,2]
[368603973,1751227856139,-460.0,0.00021353,2]
[368603974,1751227856148,-151.0,0.00021354,2]
[368603975,1751227856158,-186.317146,0.00021354,2]
[368603976,1751227856168,-186.317146,0.00021354,2]
[368603977,1751227856178,-460.0,0.00021354,2]
[368603978,1751227856188,-518.65,0.00021354,2]
[368603979,1751227856198,-614.5,0.00021354,2]
[368603980,1751227856209,-1043.13,0.00021354,2]
[368603981,1751227856219,-581.11,0.00021354,2]
[368603982,1751227856228,-727.91,0.00021354,2]
[368603983,1751227856238,-1267.43,0.00021354,2]
[368603984,1751227856248,-460.0,0.00021354,2]
[368603985,1751227856260,-651.75,0.00021355,2]
[368603986,1751227856271,-500.0,0.00021356,2]
[368603987,1751227856282,-151.0,0.00021359,2]
[368603988,1751227856291,-151.0,0.00021359,2]
[368603989,1751227856303,-151.0,0.00021359,2]
[368603990,1751227856313,-336.77804,0.00021359,2]
[368603991,1751227856323,-336.77804,0.00021359,2]
[368603992,1751227856333,-151.0,0.00021359,2]
[368603993,1751227856344,-151.0,0.00021359,2]
[368603994,1751227856353,-151.0,0.00021364,2]
[368603995,1751227856363,-369.998883,0.00021364,2]
[368603996,1751227856372,-369.998883,0.00021364,2]
[368603997,1751227856382,-1041.0,0.00021386,2]
[368603998,1751227856392,-1500.0,0.00021419,2]
[368603999,1751227856401,-500.0,0.00021419,2]
[368604000,1751227856410,-151.0,0.00021452,2]
[368604001,1751227856420,-151.0,0.00021452,2]
[368604002,1751227856429,-151.0,0.00021452,2]
[368604003,1751227856438,-501.442487,0.00021452,2]
[368604004,1751227856447,-501.442487,0.00021452,2]
[368604005,1751227856457,-219.47229,0.00021452,2]
[368604006,1751227856466,-219.47229,0.00021452,2]
[368604007,1751227856476,-361.1741641,0.00021452,2]
[368604008,1751227856485,-153.0,0.00021452,2]
[368604009,1751227856495,-153.0,0.00021452,2]
[368604010,1751227856504,-151.0,0.00021467,2]
[368604011,1751227856514,-151.0,0.00021467,2]
[368604012,1751227856523,-151.0,0.00021467,2]
[368604013,1751227856533,-151.0,0.00021467,2]
[368604014,1751227856544,-151.0,0.00021467,2]
[368604015,1751227856553,-151.0,0.00021467,2]
[368604016,1751227856563,-501.442487,0.00021467,2]
[368604017,1751227856572,-501.442487,0.00021467,2]
[368604018,1751227856581,-151.0,0.00021475,5]
[368604019,1751227856591,-465.73136788,0.00021497,2]
[368604020,1751227856601,-5000.0,0.00021503,2]
[368604021,1751227856610,-2007.15952276,0.00021509,2]
[368604022,1751227856619,-1048.30622916,0.00021581,2]
[368604023,1751227856629,-909.46648444,0.00021581,2]
[368604024,1751227856639,-525.07,0.00021625,2]
[368604025,1751227856647,-579.06,0.00021625,2]
[368604026,1751227856657,-2172.33,0.00021625,2]
[368604027,1751227856667,-151.0,0.00021626,2]
[368604028,1751227856677,-319.725605,0.00021626,2]
[368604029,1751227856686,-319.725605,0.00021626,2]
[368604030,1751227856695,-151.0,0.00021626,2]
[368604031,1751227856705,-1018.140497,0.00021626,2]
[368604032,1751227856714,-1018.140497,0.00021626,2]
[368604033,1751227856723,-460.0,0.00021626,2]
[368604034,1751227856733,-3161.16,0.00021626,2]
[368604035,1751227856743,-2985.09,0.00021626,2]
[368604036,1751227856753,-573.76,0.00021626,2]
[368604037,1751227856762,-649.15,0.00021626,2]
[368604038,1751227856772,-529.16320115,0.00021626,2]
[368604039,1751227856782,-4173.13,0.00021626,2]
[368604040,1751227856792,-3311.69,0.00021626,2]
[368604041,1751227856801,-3593.5,0.00021626,2]
[368604042,1751227856811,-494.09,0.00021626,2]
[368604043,1751227856822,-1876.75,0.00021626,2]
[368604044,1751227856831,-505.42,0.00021626,2]
[368604045,1751227856841,-545.51,0.00021626,2]
[368604046,1751227856850,-514.0,0.00021626,2]
[368604047,1751227856860,-151.0,0.00021627,2]
[368604048,1751227856870,-599.43,0.00021627,2]
[368604049,1751227856879,-199.910457,0.00021627,2]
[368604050,1751227856888,-199.910457,0.00021627,2]
[368604051,1751227856897,-229.51402,0.00021627,2]
[368604052,1751227856907,-1315.02,0.00021627,2]
[368604053,1751227856917,-814.59,0.00021627,2]
[368604054,1751227856927,-1050.34,0.00021627,2]
[368604055,1751227856937,-572.4651372,0.00021627,2]
[368604056,1751227856946,-460.0,0.00021627,2]
[368604057,1751227856956,-460.0,0.00021627,2]
[368604058,1751227856965,-622.54,0.00021627,2]
[368604059,1751227856975,-615.91,0.00021627,2]
[368604060,1751227856985,-622.23,0.00021627,2]
[368604061,1751227856995,-580.6,0.00021627,2]
[368604062,1751227857004,-1045.28,0.00021627,2]
[368604063,1751227857013,-966.73,0.00021627,2]
[368604064,1751227857022,-1694.13,0.00021627,2]
[368604065,1751227857032,-460.0,0.00021627,2]
[368604066,1751227857041,-471.76,0.00021627,2]
[368604067,1751227857051,-4024.99,0.00021627,2]
[368604068,1751227857060,-460.0,0.00021627,2]
[368604069,1751227857071,-484.82,0.00021627,2]
[368604070,1751227857081,-942.9,0.00021627,2]
[368604071,1751227857091,-1268.33,0.00021627,2]
[368604072,1751227857102,-688.52,0.00021627,2]
[368604073,1751227857111,-1363.28,0.00021627,2]
[368604074,1751227857121,-809.64,0.00021627,2]
[368604075,1751227857130,-640.55,0.00021627,2]
[368604076,1751227857139,-980.78,0.00021627,2]
[368604077,1751227857149,-1187.21,0.00021627,2]
[368604078,1751227857158,-460.0,0.00021627,2]
[368604079,1751227857167,-201.18,0.00021627,2]
[368604080,1751227857176,-4762.4,0.00021627,2]
[368604081,1751227857185,-460.0,0.00021627,2]
[368604082,1751227857194,-151.0,0.00021628,2]
[368604083,1751227857203,-214.08,0.00021628,2]
[368604084,1751227857212,-518.65,0.00021628,2]
[368604085,1751227857221,-614.5,0.00021628,2]
[368604086,1751227857230,-1043.13,0.00021628,2]
[368604087,1751227857239,-581.11,0.00021628,2]
[368604088,1751227857248,-727.91,0.00021628,2]
[368604089,1751227857257,-1267.43,0.00021628,2]
[368604090,1751227857266,-460.0,0.00021628,2]
[368604091,1751227857275,-154.11989219,0.00021629,2]
[368604092,1751227857285,-465.246323,0.00021629,2]
[368604093,1751227857294,-331.64783955,0.00021629,2]
[368604094,1751227857441,-1706.63838633,0.00020069,2]
[368604095,1751227857451,-133.59848345,0.00021629,2]
[368604096,1751227857460,-151.0,0.00021629,2]
[368604097,1751227857469,-151.0,0.00021629,2]
[368604098,1751227857479,-151.0,0.00021629,2]
[368604099,1751227857488,-651.75,0.00021629,2]
[368604100,1751227857497,-151.0,0.0002163,2]
[368604101,1751227857507,-151.0,0.00021633,2]
[368604102,1751227857516,-151.0,0.00021636,2]
[368604103,1751227857525,-189.35852851,0.00021639,2]
[368604104,1751227857538,-315.59754751,0.00021639,2]
[368604105,1751227857547,-151.0,0.00021639,2]
[368604106,1751227857557,-379.361453,0.00021639,2]
[368604107,1751227857566,-379.361453,0.00021639,2]
[368604108,1751227857575,-154.004525,0.00021639,2]
[368604109,1751227857584,-600.0,0.00021642,2]
[368604110,1751227857593,-5000.0,0.00021644,2]
[368604111,1751227857603,-5000.0,0.00021644,2]
[368604112,1751227857612,-3261.73065759,0.00021644,2]
[368604113,1751227857624,-1738.26934241,0.00021644,2]
[368604114,1751227857633,-483.42899616,0.00021644,2]
[368604115,1751227857784,5000.0,0.000181,2]
[368604116,1751227858570,-460.0,0.00018337,2]
[368604117,1751227858580,-460.0,0.00018339,2]
[368604118,1751227858590,-592.10136588,0.00018611,2]
[368604119,1751227858600,-500.0,0.00019327,2]
[368604120,1751227858609,-254.7172477,0.00019327,2]
[368604121,1751227858619,-500.0,0.00019327,2]
[368604122,1751227858628,-500.0,0.00019327,2]
[368604123,1751227858638,-500.0,0.00019327,2]
[368604124,1751227858647,-500.0,0.00019327,2]
[368604125,1751227858656,-500.0,0.00019327,2]
[368604126,1751227858666,-500.0,0.00019327,2]
[368604127,1751227858675,-264.57456956,0.00019327,2]
[368604128,1751227858684,-372.58410542,0.00019327,2]
[368604129,1751227858693,-500.0,0.00019327,2]
[368604130,1751227858703,-368.92121593,0.00019327,2]
[368604131,1751227858713,-500.0,0.00019327,2]
[368604132,1751227858722,-500.0,0.00019327,2]
[368604133,1751227858732,-500.0,0.00019327,2]
[368604134,1751227858741,-500.0,0.00019327,2]
[368604135,1751227858750,-500.0,0.00019327,2]
[368604136,1751227858759,-500.0,0.00019327,2]
[368604137,1751227858770,-500.0,0.00019327,2]
[368604138,1751227858780,-500.0,0.00019327,2]
[368604139,1751227858789,-500.0,0.00019327,2]
[368604140,1751227858800,-500.0,0.00019327,2]
[368604141,1751227858809,-500.0,0.00019327,2]
[368604142,1751227858819,-500.0,0.00019327,2]
[368604143,1751227858830,-500.0,0.00019327,2]
[368604144,1751227858840,-500.0,0.00019327,2]
[368604145,1751227858850,-500.0,0.00019327,2]
[368604146,1751227858859,-500.0,0.00019327,2]
[368604147,1751227858869,-500.0,0.00019327,2]
[368604148,1751227858880,-500.0,0.00019327,2]
[368604149,1751227858890,-500.0,0.00019327,2]
[368604150,1751227858900,-500.0,0.00019327,2]
[368604151,1751227858910,-500.0,0.00019327,2]
[368604152,1751227858920,-500.0,0.00019327,2]
[368604153,1751227858930,-500.0,0.00019327,2]
[368604154,1751227858939,-500.0,0.00019327,2]
[368604155,1751227858948,-460.0,0.00021627,2]
[368604156,1751227858958,-4516.57100384,0.00021644,2]
[368604157,1751227858967,-4775.64449167,0.00021644,2]
[368604158,1751227859330,-460.0,0.00018339,2]
[368604159,1751227859340,-460.0,0.00018613,2]
[368604160,1751227859349,-460.0,0.00018887,2]
[368604161,1751227859359,-366.235562,0.00021041,2]
[368604162,1751227859368,-224.35550833,0.00021644,2]
[368604163,1751227859378,-2769.18467342,0.00021644,2]
[368604164,1751227859389,-2230.81532658,0.00021644,2]
[368604165,1751227859399,-5000.0,0.00021644,2]
[368604166,1751227859408,-3395.27479796,0.00021644,2]
[368604167,1751227859419,-1604.72520204,0.00021644,2]
[368604168,1751227859428,-1734.72402008,0.00021644,2]
[368604169,1751227859440,-1708.709,0.00021644,2]
[368604170,1751227859451,-1161.87702452,0.00021644,2]
[368604171,1751227859463,-394.6899554,0.00021644,2]
[368604172,1751227859472,-276.10694064,0.00021644,2]
[368604173,1751227860583,-174.81982182,0.00018339,2]
[368604174,1751227998922,-342.34103958,0.00018237,2]
[368604175,1751228002678,-120.34742341,0.00018237,2]
[368604176,1751228002700,-30.95129064,0.0001833,2]
[368604177,1751228004765,-183.32674217,0.0001833,2]
[368604178,1751228007472,-290.09697578,0.0001833,2]
[368604179,1751228016829,500.0,0.00018068,2]
[368604180,1751228055092,285.3546242,0.00017338,2]
[368604181,1751228057287,1602.0548164,0.000181,2]
[368604182,1751228057309,2893.57017501,0.000181,2]
[368604183,1751228064072,280.44119768,0.00017787,2]
[368604184,1751228142377,17881.5495292,0.00017337,2]
[368604185,1751228160028,166.0,0.00017337,2]
[368604186,1751228204466,-170.28108102,0.00018236,2]
[368604187,1751228206667,-154.13291586,0.00018236,2]
[368604188,1751228213170,-192.24145768,0.00018236,2]
[368604189,1751228213194,-15.66475962,0.00018248,2]
[368604190,1751228215964,-152.09943122,0.00018248,2]
[368604191,1751228221689,-199.46270862,0.00018248,2]
[368604192,1751228224458,-275.62932467,0.00018248,2]
[368604193,1751228228739,-151.95642009,0.00018248,2]
[368604194,1751228244692,500.0,0.00018068,2]
[368604195,1751228273429,8278.43909811,0.00017337,2]
[368604196,1751228273455,1721.56090189,0.00017337,2]
[368604198,1751228365638,168.26471861,0.00017786,2]
[368604199,1751228423677,24900.0,0.00017336,2]
[368604200,1751228654893,414.162949,0.00013699,2]
[368604205,1751228738232,211.0500078,0.00017337,2]
[368604264,1751229032290,-201.18735578,0.00018248,2]
[368604266,1751229032300,-180.0,0.00018332,2]
[368604268,1751229032310,-300.0,0.00018332,2]
[368604270,1751229032319,-300.0,0.00018332,2]
[368604272,1751229032329,-300.0,0.00018332,2]
[368604274,1751229032339,-1200.0,0.00018332,2]
[368604276,1751229032349,-2473.97679824,0.00018333,2]
[368604352,1751229038220,-40687.0955032,0.00018333,2]
[368604353,1751229038230,-460.0,0.00018333,2]
[368604354,1751229038239,-460.0,0.00018333,2]
[368604355,1751229038248,-460.0,0.00018333,2]
[368604356,1751229038259,-460.0,0.00018333,2]
[368604357,1751229038269,-460.0,0.00018333,2]
[368604358,1751229038279,-460.0,0.00018333,2]
[368604359,1751229038289,-460.0,0.00018333,2]
[368604360,1751229038298,-430.0,0.00018333,2]
[368604361,1751229038307,-460.0,0.00018333,2]
[368604362,1751229038317,-460.0,0.00018333,2]
[368604363,1751229038326,-460.0,0.00018333,2]
[368604364,1751229038336,-460.0,0.00018333,2]
[368604365,1751229038345,-460.0,0.00018333,2]
[368604366,1751229038355,-460.0,0.00018333,2]
[368604367,1751229038365,-460.0,0.00018333,2]
[368604368,1751229038374,-1520.33,0.00018333,2]
[368604369,1751229038383,-460.0,0.00018333,2]
[368604370,1751229038393,-204.87449679,0.00018333,2]
[368604371,1751229038404,-255.12550321,0.00018333,2]
[368604372,1751229038414,-460.0,0.00018334,2]
[368604373,1751229038424,-460.0,0.00018334,2]
[368604374,1751229038433,-460.0,0.00018334,2]
[368604375,1751229038445,-460.0,0.00018334,2]
[368604376,1751229038455,-460.0,0.00018334,2]
[368604377,1751229038464,-500.0,0.00018334,2]
[368604378,1751229038474,-463.47970895,0.00018334,2]
[368604379,1751229038483,-830.65,0.00018334,2]
[368604380,1751229038492,-2437.24,0.00018334,2]
[368604381,1751229038502,-460.0,0.00018334,2]
[368604382,1751229038511,-460.0,0.00018334,2]
[368604383,1751229038520,-2285.19,0.00018334,2]
[368604384,1751229038530,-2536.71,0.00018334,2]
[368604385,1751229038540,-460.0,0.00018334,2]
[368604386,1751229038549,-460.0,0.00018334,2]
[368604387,1751229038558,-1312.36,0.00018334,2]
[368604388,1751229038567,-460.0,0.00018334,2]
[368604389,1751229038576,-460.0,0.00018334,2]
[368604390,1751229038586,-460.0,0.00018334,2]
[368604391,1751229038596,-460.0,0.00018335,2]
[368604392,1751229038605,-460.0,0.00018335,2]
[368604393,1751229038615,-460.0,0.00018335,2]
[368604394,1751229038624,-460.0,0.00018335,2]
[368604395,1751229038635,-453.06249216,0.00018335,2]
[368604396,1751229038645,-460.0,0.00018335,2]
[368604397,1751229038655,-460.0,0.00018335,2]
[368604398,1751229038663,-378.81579439,0.00018335,2]
[368604399,1751229038675,-81.18420561,0.00018335,2]
[368604400,1751229038684,-460.0,0.00018335,2]
[368604401,1751229038695,-480.78646366,0.00018335,2]
[368604402,1751229038704,-391.60839541,0.00018335,2]
[368604403,1751229038713,-460.0,0.00018335,2]
[368604404,1751229038723,-460.0,0.00018335,2]
[368604405,1751229038732,-460.0,0.00018335,2]
[368604406,1751229038742,-460.0,0.00018335,2]
[368604407,1751229038751,-414.78821765,0.00018335,2]
[368604408,1751229038761,-460.0,0.00018335,2]
[368604409,1751229038771,-460.0,0.00018335,2]
[368604410,1751229038781,-460.0,0.00018335,2]
[368604411,1751229038791,-462.78,0.00018335,2]
[368604412,1751229038800,-298.27122569,0.00018335,2]
[368604413,1751229038810,-460.0,0.00018335,2]
[368604414,1751229038820,-460.0,0.00018335,2]
[368604415,1751229038830,-1228.86,0.00018335,2]
[368604416,1751229038840,-460.0,0.00018335,2]
[368604417,1751229038849,-598.58,0.00018335,2]
[368604418,1751229038862,-460.0,0.00018335,2]
[368604419,1751229038872,-460.0,0.00018335,2]
[368604420,1751229038881,-575.41,0.00018335,2]
[368604421,1751229038890,-460.0,0.00018335,2]
[368604422,1751229038900,-460.0,0.00018335,2]
[368604423,1751229038910,-460.0,0.00018335,2]
[368604424,1751229038923,-460.0,0.00018335,2]
[368604425,1751229038935,-460.0,0.00018335,2]
[368604426,1751229038945,-2024.45,0.00018335,2]
[368604427,1751229038955,-460.0,0.00018335,2]
[368604428,1751229038966,-460.0,0.00018335,2]
[368604429,1751229039158,-460.0,0.00018335,2]
[368604430,1751229039169,-460.0,0.00018335,2]
[368604431,1751229039178,-460.0,0.00018335,2]
[368604432,1751229039189,-460.0,0.00018335,2]
[368604433,1751229039198,-460.0,0.00018335,2]
[368604434,1751229039208,-752.14,0.00018335,2]
[368604435,1751229039218,-2760.35,0.00018335,2]
[368604436,1751229039228,-460.0,0.00018335,2]
[368604437,1751229039237,-366.9651575,0.00018335,2]
[368604438,1751229039247,-460.0,0.00018335,2]
[368604439,1751229039256,-460.0,0.00018335,2]
[368604440,1751229039266,-460.0,0.00018335,2]
[368604441,1751229039277,-460.0,0.00018335,2]
[368604442,1751229039288,-460.0,0.00018335,2]
[368604443,1751229039298,-460.0,0.00018335,2]
[368604444,1751229039308,-460.0,0.00018335,2]
[368604445,1751229039318,-460.0,0.00018335,2]
[368604446,1751229039329,-905.04,0.00018335,2]
[368604447,1751229039339,-460.0,0.00018335,2]
[368604448,1751229039350,-460.0,0.00018335,2]
[368604449,1751229039359,-460.0,0.00018335,2]
[368604450,1751229039368,-460.0,0.00018335,2]
[368604451,1751229039377,-460.0,0.00018335,2]
[368604452,1751229039386,-460.0,0.00018335,2]
[368604453,1751229039395,-460.0,0.00018336,2]
[368604454,1751229039404,-460.0,0.00018336,2]
[368604455,1751229039414,-460.0,0.00018336,2]
[368604456,1751229039423,-460.0,0.00018336,2]